bitfinex-derivatives/quotes_BTCF0:USTF0_20240917
["timestamp","ask_amount","ask_price","bid_price","bid_amount"]
[1726544403190,0.35101,58133.0,58132.0,0.07569548]
[1726544403392,0.35101,58133.0,58132.0,0.007]
[1726544403393,0.088405,58133.0,58132.0,0.007]
[1726544403697,0.218405,58133.0,58132.0,0.007]
[1726544404893,0.218405,58133.0,58132.0,0.20558148]
[1726544405290,0.218405,58133.0,58132.0,0.11973538]
[1726544407411,0.218405,58133.0,58132.0,0.22269596]
[1726544408497,0.218405,58133.0,58132.0,0.22290995]
[1726544409997,0.218405,58133.0,58132.0,0.11973538]
[1726544412299,0.218405,58133.0,58132.0,0.11985886]
[1726544416998,0.218405,58133.0,58132.0,0.007]
[1726544417202,0.218405,58133.0,58132.0,0.11986319]
[1726544420704,0.218405,58133.0,58132.0,0.007]
[1726544421604,0.218405,58133.0,58132.0,0.11991448]
[1726544422305,0.0024,58133.0,58132.0,0.20592048]
[1726544423414,0.0024,58133.0,58132.0,0.093006]
[1726544427404,0.0024,58133.0,58132.0,0.3402483]
[1726544428810,0.13,58134.0,58133.0,0.086005]
[1726544429115,0.13,58134.0,58133.0,0.3336473]
[1726544430110,0.131,58134.0,58133.0,0.3336473]
[1726544430412,0.132,58134.0,58133.0,0.3336473]
[1726544431708,0.218003,58134.0,58133.0,0.3336473]
[1726544432422,0.218003,58134.0,58133.0,0.33355359]
[1726544435924,0.218003,58134.0,58133.0,0.086405]
[1726544443924,0.218003,58134.0,58133.0,0.33358044]
[1726544448037,0.218003,58134.0,58133.0,0.33359115]
[1726544451032,0.218003,58134.0,58133.0,0.086405]
[1726544455141,0.218003,58134.0,58133.0,0.28524471]
[1726544459046,0.218003,58134.0,58133.0,0.33362618]
[1726544465851,0.218003,58134.0,58133.0,0.086405]
[1726544466043,0.218003,58134.0,58133.0,0.33357943]
[1726544467343,0.218003,58134.0,58133.0,0.19916903]
[1726544467542,0.218003,58134.0,58133.0,0.33357548]
[1726544469447,0.218003,58134.0,58133.0,0.24757182]
[1726544469751,0.304006,58134.0,58133.0,0.2164136]
[1726544469953,0.403306,58134.0,58133.0,0.11316284]
[1726544471756,0.403306,58134.0,58133.0,0.2164136]
[1726544471951,0.403306,58134.0,58133.0,0.11316284]
[1726544472449,0.764106,58134.0,58133.0,0.11316284]
[1726544474153,0.764106,58134.0,58133.0,0.2164136]
[1726544475759,0.403306,58134.0,58133.0,0.2164136]
[1726544476052,0.764106,58134.0,58133.0,0.2164136]
[1726544476651,0.764106,58134.0,58133.0,0.11316284]
[1726544477352,0.764106,58134.0,58133.0,0.2164136]
[1726544478855,0.764106,58134.0,58133.0,0.21636113]
[1726544479053,0.764106,58134.0,58133.0,0.11316284]
[1726544479254,0.764106,58134.0,58133.0,0.21636268]
[1726544480255,0.764106,58134.0,58133.0,0.11316284]
[1726544480457,0.764106,58134.0,58133.0,0.21633455]
[1726544482052,0.498703,58134.0,58133.0,0.21633455]
[1726544482256,0.498703,58134.0,58133.0,0.11313688]
[1726544483356,0.498703,58134.0,58133.0,0.21633291]
[1726544484158,0.498703,58134.0,58133.0,0.11313688]
[1726544484352,0.498703,58134.0,58133.0,0.21633097]
[1726544484846,0.498703,58134.0,58133.0,0.11313688]
[1726544486252,0.498703,58134.0,58133.0,0.11306684]
[1726544486651,0.498703,58134.0,58133.0,0.21626454]
[1726544487261,0.498703,58134.0,58133.0,0.11306684]
[1726544488160,0.498703,58134.0,58133.0,0.21626639]
[1726544494248,0.448803,58134.0,58133.0,0.30227139]
[1726544494449,0.448803,58134.0,58133.0,0.33332083]
[1726544494766,0.00096001,58138.0,58133.0,1.36335357]
[1726544494950,0.008,58143.0,58142.0,0.085992]
[1726544495150,0.36168,58153.0,58144.0,0.13]
[1726544495353,0.36168,58153.0,58141.0,0.3608]
[1726544495354,0.3608,58153.0,58152.0,0.17223357]
[1726544495556,0.3608,58153.0,58152.0,0.19846675]
[1726544495750,0.446775,58153.0,58152.0,0.11248975]
[1726544496352,0.446775,58153.0,58152.0,0.19827126]
[1726544497352,0.446775,58153.0,58151.0,0.08578151]
[1726544497566,0.0004,58152.0,58151.0,0.08578151]
[1726544498056,0.0004,58152.0,58150.0,0.08578151]
[1726544498254,0.1304,58151.0,58150.0,0.08578151]
[1726544499266,0.1304,58151.0,58149.0,0.17434097]
[1726544499457,0.1304,58151.0,58149.0,0.18369196]
[1726544499657,0.0004,58150.0,58149.0,0.18369196]
[1726544499859,0.0004,58150.0,58149.0,0.29512852]
[1726544500267,0.0004,58150.0,58149.0,0.09791045]
[1726544501263,0.0034,58150.0,58149.0,0.09791045]
[1726544501665,0.0054,58150.0,58149.0,0.09791045]
[1726544503168,0.0054,58150.0,58149.0,0.08855946]
[1726544503470,0.09138,58150.0,58149.0,0.00257946]
[1726544504273,0.18488,58150.0,58149.0,0.00257946]
[1726544505780,0.31488,58150.0,58149.0,0.00257946]
[1726544512280,0.67568,58150.0,58149.0,0.00257946]
[1726544512980,0.54568,58150.0,58149.0,0.00257946]
[1726544514476,0.45218,58150.0,58149.0,0.00257946]
[1726544520278,0.45218,58150.0,58149.0,0.19993002]
[1726544521290,0.45218,58150.0,58149.0,0.11414851]
[1726544522285,0.45218,58150.0,58149.0,0.11424229]
[1726544523897,0.45218,58150.0,58149.0,0.21722831]
[1726544524289,0.45218,58150.0,58149.0,0.24768829]
[1726544524799,0.09138,58150.0,58149.0,0.24768829]
[1726544526196,0.09138,58150.0,58149.0,0.00257946]
[1726544528788,0.09138,58150.0,58149.0,0.07134691]
[1726544528994,0.09138,58150.0,58149.0,0.00257946]
[1726544532294,0.09138,58150.0,58149.0,0.05415345]
[1726544532489,0.09138,58150.0,58149.0,0.00257946]
[1726544533496,0.17736,58150.0,58149.0,0.24789463]
[1726544534303,0.26334,58150.0,58149.0,0.24789463]
[1726544534500,0.08599,58143.0,58142.0,0.004]
[1726544534690,0.08599,58143.0,58141.0,0.4823192]
[1726544534691,0.0004,58143.0,58141.0,0.36212]
[1726544534889,0.0004,58142.0,58141.0,0.3608]
[1726544535103,0.0004,58143.0,58141.0,0.3608]
[1726544535303,0.13,58142.0,58141.0,0.3608]
[1726544536300,0.215992,58142.0,58141.0,0.3608]
[1726544536904,0.216992,58142.0,58141.0,0.3608]
[1726544537403,0.217992,58142.0,58141.0,0.3628]
[1726544540011,0.217992,58142.0,58141.0,0.002]
[1726544545308,0.087992,58142.0,58141.0,0.002]
[1726544549420,0.087992,58142.0,58141.0,0.1109386]
[1726544555114,0.217992,58142.0,58141.0,0.1109386]
[1726544555311,0.303984,58142.0,58141.0,0.21402356]
[1726544555616,0.483576,58142.0,58141.0,0.002]
[1726544556010,0.483576,58142.0,58141.0,0.07074548]
[1726544556424,1.599576,58142.0,58141.0,0.002]
[1726544557124,1.64557684,58142.0,58141.0,0.002]
[1726544557826,0.17199,58140.0,58139.0,0.00258001]
[1726544558210,0.17239,58140.0,58139.0,0.00258001]
[1726544558416,0.27541129,58140.0,58139.0,0.00258001]
[1726544558716,0.99701129,58140.0,58139.0,0.00258001]
[1726544558918,0.99801643,58140.0,58139.0,0.00258001]
[1726544559119,0.99901643,58140.0,58139.0,0.00458001]
[1726544559724,0.63821643,58140.0,58139.0,0.00458001]
[1726544560026,0.53519,58140.0,58139.0,0.00458001]
[1726544562730,0.63821643,58140.0,58139.0,0.00458001]
[1726544562930,0.53519,58140.0,58139.0,0.00458001]
[1726544563123,0.63821643,58140.0,58139.0,0.00458001]
[1726544563324,0.53519,58140.0,58139.0,0.00458001]
[1726544564034,0.53519,58140.0,58139.0,0.0560976]
[1726544564436,0.53519,58140.0,58139.0,0.00458001]
[1726544566332,0.53519,58140.0,58139.0,0.05609208]
[1726544566538,0.66519,58140.0,58139.0,0.00458001]
[1726544567236,0.66519,58140.0,58139.0,0.07332549]
[1726544567237,0.449195,58140.0,58139.0,0.07332549]
[1726544567436,0.449195,58140.0,58139.0,0.00458001]
[1726544569741,0.579195,58140.0,58139.0,0.00458001]
[1726544572041,0.449195,58140.0,58139.0,0.00458001]
[1726544573545,0.449195,58140.0,58139.0,0.09050746]
[1726544573839,0.449195,58140.0,58139.0,0.00458001]
[1726544574542,0.449195,58140.0,58139.0,0.09050746]
[1726544575645,0.449195,58140.0,58139.0,0.19967915]
[1726544575943,0.449195,58140.0,58139.0,0.19974583]
[1726544575944,0.0024,58140.0,58139.0,0.19974583]
[1726544576150,0.0004,58143.0,58142.0,0.085992]
[1726544576437,0.0004,58143.0,58142.0,0.29859353]
[1726544577335,0.13,58146.0,58145.0,0.085987]
[1726544577530,0.13,58146.0,58145.0,0.28140245]
[1726544577735,0.3608,58149.0,58145.0,0.19541545]
[1726544577936,0.3608,58149.0,58148.0,0.0004]
[1726544578538,0.46382643,58149.0,58148.0,0.0004]
[1726544579345,0.46582643,58149.0,58148.0,0.086383]
[1726544579545,0.3638,58149.0,58148.0,0.086383]
[1726544581447,0.003,58149.0,58148.0,0.186383]
[1726544582052,0.002,58155.0,58154.0,0.085974]
[1726544582347,0.002,58155.0,58154.0,0.086374]
[1726544582844,0.002,58155.0,58154.0,0.134374]
[1726544583841,0.01,58155.0,58154.0,0.134374]
[1726544584034,0.017,58155.0,58154.0,0.134374]
[1726544585249,0.017,58155.0,58154.0,0.179874]
[1726544586536,0.017,58155.0,58154.0,0.24853637]
[1726544587143,0.017,58155.0,58154.0,0.179874]
[1726544587648,0.017,58155.0,58154.0,0.134374]
[1726544590053,0.017,58155.0,58154.0,0.18574956]
[1726544590455,0.017,58155.0,58154.0,0.134374]
[1726544590753,0.017,58155.0,58154.0,0.13774456]
[1726544593552,0.102972,58155.0,58154.0,0.05177056]
[1726544593746,0.195772,58155.0,58154.0,0.0004]
[1726544598346,0.195772,58155.0,58154.0,0.06906237]
[1726544599155,0.195772,58155.0,58154.0,0.0004]
[1726544600259,0.195772,58155.0,58154.0,0.06906237]
[1726544600850,0.195772,58155.0,58154.0,0.0004]
[1726544602065,0.017,58155.0,58154.0,0.0004]
[1726544602664,0.017,58155.0,58154.0,0.086374]
[1726544604066,0.102972,58155.0,58154.0,0.086374]
[1726544604368,0.102972,58155.0,58154.0,0.0004]
[1726544605764,0.08598,58150.0,58149.0,0.00257956]
[1726544605966,0.31905158,58150.0,58149.0,0.00257956]
[1726544606273,0.08599,58143.0,58142.0,0.004]
[1726544606470,0.08599,58143.0,58139.0,0.00258001]
[1726544606471,0.085995,58140.0,58139.0,0.00258001]
[1726544606655,0.186395,58140.0,58139.0,0.00258001]
[1726544606963,0.185995,58140.0,58139.0,0.00258001]
[1726544607168,0.2890554,58140.0,58139.0,0.00258001]
[1726544607369,0.185995,58140.0,58139.0,0.00258001]
[1726544607771,0.185995,58140.0,58139.0,0.00558001]
[1726544607772,0.187995,58140.0,58139.0,0.00558001]
[1726544607965,0.087995,58140.0,58139.0,0.00558001]
[1726544608168,0.19103985,58140.0,58139.0,0.00558001]
[1726544608665,0.19103985,58140.0,58139.0,0.11477169]
[1726544608666,0.247995,58140.0,58139.0,0.11477169]
[1726544609067,0.247995,58140.0,58139.0,0.00558001]
[1726544610371,0.248995,58140.0,58139.0,0.00258001]
[1726544611069,0.25835269,58140.0,58139.0,0.05405155]
[1726544611367,0.25835269,58140.0,58139.0,0.00258001]
[1726544611671,0.30355269,58140.0,58139.0,0.00258001]
[1726544612673,0.09835269,58140.0,58139.0,0.00258001]
[1726544612860,0.09835269,58140.0,58139.0,0.07126304]
[1726544615675,0.45915269,58140.0,58139.0,0.07126304]
[1726544616176,0.45915269,58140.0,58139.0,0.06868303]
[1726544616469,0.085996,58139.0,58138.0,0.00938798]
[1726544616675,0.085997,58138.0,58137.0,0.05143161]
[1726544617069,0.085999,58137.0,58136.0,0.05143161]
[1726544617271,0.086399,58137.0,58136.0,0.05143161]
[1726544619670,0.085399,58137.0,58136.0,0.05143161]
[1726544620073,0.085399,58137.0,58135.0,0.14686748]
[1726544620272,0.085399,58137.0,58136.0,0.002]
[1726544620580,0.084999,58137.0,58136.0,0.002]
[1726544621369,0.084999,58137.0,58135.0,0.14986748]
[1726544621572,0.0004,58136.0,58135.0,0.14986748]
[1726544622470,0.0864,58136.0,58135.0,0.14986748]
[1726544623078,0.0844,58136.0,58135.0,0.14686748]
[1726544623581,0.0844,58136.0,58135.0,0.09543587]
[1726544623780,0.0844,58136.0,58135.0,0.09643587]
[1726544626982,0.0844,58136.0,58135.0,0.18231655]
[1726544627179,0.0844,58136.0,58135.0,0.29130264]
[1726544627384,0.3608,58139.0,58138.0,0.085997]
[1726544627593,0.3608,58139.0,58138.0,0.086397]
[1726544628085,0.1,58139.0,58138.0,0.086397]
[1726544629183,0.1,58139.0,58138.0,0.17227768]
[1726544629881,0.1,58139.0,58138.0,0.28117312]
[1726544630183,0.101,58139.0,58138.0,0.28117312]
[1726544630581,0.101,58139.0,58138.0,0.17227768]
[1726544631174,0.101,58139.0,58138.0,0.28127025]
[1726544631581,0.101,58139.0,58138.0,0.086397]
[1726544632689,0.001,58139.0,58138.0,0.086397]
[1726544638693,0.001,58139.0,58138.0,0.32576531]
[1726544640586,0.001,58139.0,58138.0,0.32580179]
[1726544642291,0.001,58139.0,58138.0,0.42580179]
[1726544644484,0.001,58139.0,58138.0,0.42576963]
[1726544644684,0.008,58144.0,58143.0,0.08599]
[1726544644886,0.093983,58148.0,58143.0,0.33977263]
[1726544645091,0.085983,58148.0,58147.0,0.0004]
[1726544645398,0.085983,58148.0,58147.0,0.10960475]
[1726544646196,0.091983,58148.0,58147.0,0.10960475]
[1726544647000,0.094983,58148.0,58147.0,0.10960475]
[1726544647293,0.098983,58148.0,58147.0,0.19554054]
[1726544648292,0.098983,58148.0,58147.0,0.08633579]
[1726544648895,0.089983,58148.0,58147.0,0.08633579]
[1726544649097,0.092983,58148.0,58147.0,0.08633579]
[1726544649498,0.092983,58148.0,58147.0,0.0004]
[1726544649499,0.278966,58148.0,58147.0,0.0004]
[1726544649695,0.328066,58148.0,58147.0,0.06914089]
[1726544649997,0.328066,58148.0,58147.0,0.0691397]
[1726544650299,0.242083,58148.0,58147.0,0.0691397]
[1726544650700,0.238083,58148.0,58147.0,0.0691397]
[1726544650900,0.243083,58148.0,58147.0,0.0691397]
[1726544651894,0.240083,58148.0,58147.0,0.0691397]
[1726544652100,0.244083,58148.0,58147.0,0.0691397]
[1726544652803,0.249083,58148.0,58147.0,0.0691397]
[1726544653006,0.253083,58148.0,58147.0,0.0691397]
[1726544653408,0.613883,58148.0,58147.0,0.0691397]
[1726544653592,0.92105604,58148.0,58147.0,0.0004]
[1726544653797,0.93105604,58148.0,58147.0,0.0004]
[1726544655606,0.77625757,58148.0,58147.0,0.00018988]
[1726544656706,0.085992,58142.0,58141.0,0.085992]
[1726544657001,0.24107394,58142.0,58141.0,0.085992]
[1726544657206,0.40250538,58142.0,58141.0,0.085992]
[1726544657691,0.40650538,58142.0,58141.0,0.085992]
[1726544658797,0.40950538,58142.0,58141.0,0.085992]
[1726544660099,0.25482344,58142.0,58141.0,0.085992]
[1726544660307,0.24809431,58142.0,58141.0,0.085992]
[1726544660698,0.40952575,58142.0,58141.0,0.085992]
[1726544661406,0.40852575,58142.0,58141.0,0.085992]
[1726544661709,0.092392,58142.0,58141.0,0.32534207]
[1726544661899,0.092392,58142.0,58141.0,0.19518646]
[1726544662615,0.091392,58142.0,58141.0,0.19518646]
[1726544663308,0.10104772,58142.0,58141.0,0.19518646]
[1726544663502,0.10104772,58142.0,58141.0,0.32534505]
[1726544663807,0.10104772,58142.0,58141.0,0.32532901]
[1726544665007,0.10104772,58142.0,58141.0,0.1951805]
[1726544665806,0.10104772,58142.0,58141.0,0.32537157]
[1726544666805,0.10104772,58142.0,58141.0,0.32543396]
[1726544668606,0.14740565,58142.0,58141.0,0.085992]
[1726544670709,0.10104772,58142.0,58141.0,0.085992]
[1726544676614,0.10104772,58142.0,58141.0,0.1952336]
[1726544680619,0.091392,58142.0,58141.0,0.32547721]
[1726544680910,0.008,58149.0,58148.0,0.085983]
[1726544681114,0.08858712,58152.0,58149.0,0.085981]
[1726544681310,0.08858712,58152.0,58150.0,0.2092416]
[1726544681519,0.08858712,58152.0,58151.0,0.1092416]
[1726544682915,0.00261012,58152.0,58151.0,0.29841266]
[1726544683209,0.00261012,58152.0,58151.0,0.29787814]
[1726544683409,0.00261012,58152.0,58151.0,0.29773292]
[1726544683605,0.16977699,58152.0,58151.0,0.085978]
[1726544684009,0.0494473,58152.0,58151.0,0.085978]
[1726544684317,0.10382811,58152.0,58151.0,0.085978]
[1726544684518,0.11582811,58152.0,58151.0,0.086978]
[1726544685201,0.11382811,58152.0,58151.0,0.086978]
[1726544685601,0.13284255,58152.0,58151.0,0.086978]
[1726544685807,0.17967973,58152.0,58151.0,0.086978]
[1726544687203,0.17967973,58152.0,58151.0,0.09660274]
[1726544687412,0.0594473,58152.0,58151.0,0.09660274]
[1726544688013,0.0594176,58152.0,58151.0,0.09660274]
[1726544690709,0.01261012,58152.0,58151.0,0.20509491]
[1726544693321,0.01261012,58152.0,58151.0,0.09660274]
[1726544694224,0.01261012,58152.0,58151.0,0.18233688]
[1726544694616,0.01261012,58152.0,58151.0,0.086978]
[1726544697122,0.09858712,58152.0,58151.0,0.086978]
[1726544698719,0.21881955,58152.0,58151.0,0.086978]
[1726544698925,0.26549842,58152.0,58151.0,0.086978]
[1726544699312,0.26549842,58152.0,58151.0,0.447778]
[1726544699518,0.12023243,58158.0,58157.0,0.085969]
[1726544699729,0.12023243,58163.0,58162.0,0.085962]
[1726544699918,0.36968,58165.0,58164.0,0.085959]
[1726544699919,0.3608,58165.0,58164.0,0.085959]
[1726544700116,0.40813135,58165.0,58164.0,0.086759]
[1726544700429,0.40813135,58165.0,58164.0,0.085959]
[1726544701413,0.3728,58165.0,58164.0,0.085959]
[1726544702421,0.3728,58165.0,58160.0,0.085965]
[1726544702622,0.288828,58162.0,58160.0,0.00939562]
[1726544702819,0.288828,58162.0,58158.0,0.085968]
[1726544703430,0.188828,58162.0,58158.0,0.085968]
[1726544703628,0.188828,58162.0,58160.0,0.001]
[1726544704125,0.193828,58162.0,58158.0,0.085968]
[1726544704332,0.188831,58160.0,58157.0,0.3616]
[1726544704531,0.102865,58159.0,58157.0,0.3616]
[1726544704829,0.085966,58160.0,58157.0,0.0008]
[1726544704830,0.102865,58158.0,58157.0,0.0008]
[1726544705335,0.102865,58159.0,58157.0,0.086769]
[1726544705633,0.102865,58159.0,58158.0,0.0008]
[1726544705831,0.085966,58160.0,58158.0,0.05226118]
[1726544706136,0.085966,58160.0,58159.0,0.05226118]
[1726544706527,0.085966,58160.0,58159.0,0.0008]
[1726544707231,0.090966,58160.0,58159.0,0.0008]
[1726544707435,0.095966,58160.0,58159.0,0.0008]
[1726544707730,0.097966,58160.0,58159.0,0.0018]
[1726544707927,0.012,58160.0,58159.0,0.1018]
[1726544711837,0.012,58160.0,58159.0,0.0018]
[1726544711838,0.458765,58160.0,58159.0,0.0018]
[1726544714832,0.097965,58160.0,58159.0,0.0018]
[1726544715942,0.097965,58160.0,58159.0,0.05326118]
[1726544716441,0.097965,58160.0,58159.0,0.05324476]
[1726544716636,0.097965,58160.0,58159.0,0.0018]
[1726544716842,0.097965,58160.0,58159.0,0.05324467]
[1726544717238,0.012,58160.0,58159.0,0.087766]
[1726544721045,0.0594499,58160.0,58159.0,0.087766]
[1726544721941,0.0594499,58160.0,58159.0,0.09751934]
[1726544723442,0.17968233,58160.0,58159.0,0.09751934]
[1726544723644,0.0594499,58160.0,58159.0,0.09751934]
[1726544726344,0.13223243,58160.0,58159.0,0.09751934]
[1726544726544,0.17968233,58160.0,58159.0,0.09751934]
[1726544727047,0.17979332,58160.0,58159.0,0.09751934]
[1726544727241,0.11478131,58160.0,58159.0,0.09751934]
[1726544728351,0.25230095,58160.0,58159.0,0.09751934]
[1726544728843,0.012,58160.0,58159.0,0.09751934]
[1726544732347,0.012,58160.0,58159.0,0.18325348]
[1726544732548,0.012,58160.0,58159.0,0.29130174]
[1726544733246,0.012,58160.0,58159.0,0.18325348]
[1726544733744,0.012,58160.0,58159.0,0.29123305]
[1726544733954,0.012,58160.0,58159.0,0.18325348]
[1726544734244,0.012,58160.0,58159.0,0.29123609]
[1726544734650,0.012,58160.0,58159.0,0.18325348]
[1726544735849,0.012,58160.0,58159.0,0.29129644]
[1726544736052,0.012,58160.0,58159.0,0.2520623]
[1726544740549,0.004,58164.0,58163.0,0.085961]
[1726544740851,0.004,58168.0,58167.0,0.085955]
[1726544741059,0.3608,58173.0,58169.0,0.085951]
[1726544741268,0.37044007,58173.0,58172.0,0.0008]
[1726544741446,0.37044007,58173.0,58171.0,0.1]
[1726544742355,0.37044007,58173.0,58170.0,0.13744816]
[1726544742356,0.085947,58172.0,58170.0,0.13744816]
[1726544742755,0.085947,58172.0,58170.0,0.08595]
[1726544743153,0.085947,58172.0,58169.0,0.05149816]
[1726544743346,0.085947,58172.0,58169.0,0.13744916]
[1726544743753,0.096947,58172.0,58170.0,0.001]
[1726544743955,0.16641115,58171.0,58168.0,0.02501761]
[1726544744151,0.16641603,58170.0,58169.0,0.085951]
[1726544744550,0.16641603,58170.0,58169.0,0.086951]
[1726544745356,0.25236603,58170.0,58169.0,0.001]
[1726544745743,0.26636603,58170.0,58169.0,0.002]
[1726544745943,0.18041603,58170.0,58169.0,0.002]
[1726544746144,0.26636603,58170.0,58169.0,0.001]
[1726544746957,0.27836603,58170.0,58169.0,0.002]
[1726544747153,0.36431603,58170.0,58169.0,0.002]
[1726544747561,0.085953,58168.0,58167.0,0.0008]
[1726544747753,0.35236903,58168.0,58167.0,0.0008]
[1726544747955,0.44636903,58168.0,58167.0,0.0008]
[1726544748153,0.38320259,58168.0,58167.0,0.0008]
[1726544748748,0.39620259,58168.0,58167.0,0.0018]
[1726544749558,0.77000259,58168.0,58167.0,0.0028]
[1726544750361,0.907458,58168.0,58167.0,0.0028]
[1726544750860,0.666753,58168.0,58167.0,0.07146422]
[1726544751653,0.666753,58168.0,58167.0,0.0714938]
[1726544751854,0.666753,58168.0,58167.0,0.0028]
[1726544752158,0.666753,58168.0,58167.0,0.07149353]
[1726544752358,0.666753,58168.0,58167.0,0.0028]
[1726544752555,0.666753,58168.0,58167.0,0.07149671]
[1726544753761,0.666753,58168.0,58167.0,0.07150404]
[1726544754359,0.666753,58168.0,58167.0,0.07150374]
[1726544755066,0.666753,58168.0,58167.0,0.0028]
[1726544755257,0.666753,58168.0,58167.0,0.07150402]
[1726544755564,0.666753,58168.0,58167.0,0.0028]
[1726544755968,0.566753,58168.0,58167.0,0.0028]
[1726544756660,0.472753,58168.0,58167.0,0.0028]
[1726544756868,0.111953,58168.0,58167.0,0.0028]
[1726544757857,0.211953,58168.0,58167.0,0.0028]
[1726544758959,0.37318215,58168.0,58167.0,0.0028]
[1726544759164,0.52781948,58168.0,58167.0,0.0028]
[1726544759367,0.37318215,58168.0,58167.0,0.0028]
[1726544760972,0.52781948,58168.0,58167.0,0.0028]
[1726544761472,0.085958,58165.0,58164.0,0.00446822]
[1726544761767,0.24798715,58165.0,58164.0,0.00046822]
[1726544762562,0.25798715,58165.0,58164.0,0.00046822]
[1726544763074,0.26998715,58165.0,58164.0,0.00146822]
[1726544764472,0.45898834,58165.0,58164.0,0.00146822]
[1726544764668,0.41838715,58165.0,58164.0,0.00146822]
[1726544765260,0.60738834,58165.0,58164.0,0.00146822]
[1726544765870,0.53211719,58165.0,58164.0,0.19658227]
[1726544766077,0.343116,58165.0,58164.0,0.00146822]
[1726544766377,0.35263986,58165.0,58164.0,0.00146822]
[1726544766967,0.43859786,58165.0,58164.0,0.00146822]
[1726544767170,0.085968,58158.0,58157.0,0.08583139]
[1726544767366,0.171944,58155.0,58149.0,0.1030037]
[1726544767565,0.1,58150.0,58147.0,0.1030037]
[1726544767764,0.1,58150.0,58142.0,0.10303657]
[1726544767969,0.1,58150.0,58143.0,0.10991713]
[1726544767970,0.085989,58144.0,58143.0,0.10991713]
[1726544768177,0.546789,58144.0,58143.0,0.10991713]
[1726544768573,0.4608,58144.0,58139.0,0.0123532]
[1726544768783,0.47062075,58144.0,58140.0,0.10844309]
[1726544769078,0.47062075,58144.0,58141.0,0.10844309]
[1726544769277,0.47062075,58144.0,58139.0,0.00257999]
[1726544769576,0.086395,58140.0,58139.0,0.00257999]
[1726544769778,0.47150075,58144.0,58139.0,0.11093466]
[1726544770071,0.47150075,58144.0,58143.0,0.0044]
[1726544770072,0.446789,58144.0,58143.0,0.0044]
[1726544771469,0.446789,58144.0,58143.0,0.0004]
[1726544772378,0.451789,58144.0,58143.0,0.0004]
[1726544783887,0.090989,58144.0,58143.0,0.0004]
[1726544784086,0.451789,58144.0,58143.0,0.0004]
[1726544784777,0.537778,58144.0,58143.0,0.0004]
[1726544785677,0.631978,58144.0,58143.0,0.0004]
[1726544785873,0.717967,58144.0,58143.0,0.0004]
[1726544787580,0.537778,58144.0,58143.0,0.0004]
[1726544795586,0.64088895,58144.0,58143.0,0.0004]
[1726544796087,0.537778,58144.0,58143.0,0.0004]
[1726544797986,0.637778,58144.0,58143.0,0.0004]
[1726544800597,0.684578,58144.0,58143.0,0.0004]
[1726544802095,0.637778,58144.0,58143.0,0.0004]
[1726544802282,0.637778,58144.0,58143.0,0.19462265]
[1726544802590,0.637778,58144.0,58143.0,0.10869116]
[1726544803295,0.637778,58144.0,58143.0,0.19463399]
[1726544803595,0.637778,58144.0,58143.0,0.19463951]
[1726544803790,0.637778,58144.0,58143.0,0.08634835]
[1726544803998,0.637778,58144.0,58143.0,0.0004]
[1726544804190,0.683378,58144.0,58143.0,0.0004]
[1726544806003,0.743378,58144.0,58143.0,0.0004]
[1726544808495,0.829367,58144.0,58143.0,0.0004]
[1726544808702,0.17199,58140.0,58139.0,0.08594835]
[1726544808993,0.33239,58140.0,58139.0,0.19437537]
[1726544810101,0.33239,58140.0,58139.0,0.19637537]
[1726544810998,0.43464049,58140.0,58139.0,0.002]
[1726544813303,0.57212176,58140.0,58139.0,0.002]
[1726544813608,0.57202789,58140.0,58139.0,0.002]
[1726544814201,0.48603289,58140.0,58139.0,0.002]
[1726544814392,0.34855162,58140.0,58139.0,0.002]
[1726544814598,0.48603289,58140.0,58139.0,0.002]
[1726544816613,0.84683289,58140.0,58139.0,0.002]
[1726544818014,0.68683289,58140.0,58139.0,0.002]
[1726544818199,0.54935162,58140.0,58139.0,0.002]
[1726544819112,0.447195,58140.0,58139.0,0.1104667]
[1726544819517,0.53319,58140.0,58139.0,0.1104667]
[1726544819713,0.69319,58140.0,58139.0,0.1104667]
[1726544820815,0.607195,58140.0,58139.0,0.1104667]
[1726544821004,0.086395,58140.0,58139.0,0.1104667]
[1726544821318,0.086395,58140.0,58139.0,0.23955847]
[1726544821712,0.37051112,58145.0,58139.0,0.23955847]
[1726544821903,0.45649812,58145.0,58144.0,0.0004]
[1726544822104,0.45649812,58145.0,58144.0,0.1571667]
[1726544823920,0.46449812,58145.0,58144.0,0.1571667]
[1726544826110,0.46449812,58145.0,58144.0,0.243081]
[1726544826111,0.62449812,58145.0,58144.0,0.243081]
[1726544826718,0.62449812,58145.0,58144.0,0.1346143]
[1726544826926,0.62449812,58145.0,58144.0,0.0487]
[1726544827616,0.62449812,58145.0,58144.0,0.1346143]
[1726544828007,0.56449812,58145.0,58144.0,0.1346143]
[1726544828522,0.56449812,58145.0,58144.0,0.0487]
[1726544828914,0.20369812,58145.0,58144.0,0.0487]
[1726544829522,0.20369812,58145.0,58144.0,0.0004]
[1726544830020,0.28968512,58145.0,58144.0,0.0004]
[1726544830224,0.37567212,58145.0,58144.0,0.0004]
[1726544830819,0.37567212,58145.0,58144.0,1e-06]
[1726544831226,0.89163212,58145.0,58144.0,1e-06]
[1726544831425,1.49163212,58145.0,58144.0,1e-06]
[1726544831925,0.17199,58140.0,58139.0,0.06873586]
[1726544832128,0.69319,58140.0,58139.0,0.06873586]
[1726544832927,0.69319,58140.0,58139.0,0.06973586]
[1726544833117,0.69319,58140.0,58139.0,0.001]
[1726544834225,0.79515381,58140.0,58139.0,0.001]
[1726544837426,1.31115381,58140.0,58139.0,0.001]
[1726544838835,0.79515381,58140.0,58139.0,0.001]
[1726544839733,0.85754016,58140.0,58139.0,0.001]
[1726544840523,0.85735783,58140.0,58139.0,0.001]
[1726544840721,0.171998,58137.0,58136.0,0.00257999]
[1726544840930,0.41169009,58137.0,58136.0,0.00257999]
[1726544841334,0.172398,58137.0,58136.0,0.07131585]
[1726544842039,0.087399,58137.0,58136.0,0.07131585]
[1726544842241,0.173398,58137.0,58136.0,0.00257999]